bitfinex/quotes_SOLUSD_20250102
["timestamp","ask_amount","ask_price","bid_price","bid_amount"]
[1735839380720,28.90398988,206.85,206.78,22.49668988]
[1735839380907,0.12549,206.84,206.77,22.49668988]
[1735839381092,22.62217988,206.84,206.77,22.49668988]
[1735839381287,22.62217988,206.82,206.75,22.49668988]
[1735839381492,22.49668988,206.82,206.75,22.49668988]
[1735839381906,0.12549,206.81,206.75,22.49668988]
[1735839382086,0.12549,206.81,206.7,76.68598988]
[1735839382087,22.74766988,206.81,206.73,22.49668988]
[1735839382293,0.12549,206.79,206.72,22.49668988]
[1735839382824,0.12549,206.79,206.74,22.49668988]
[1735839383118,0.12549,206.79,206.75,22.49668988]
[1735839383289,0.12549,206.8,206.75,22.49668988]
[1735839383818,0.12549,206.8,206.74,22.49668988]
[1735839384789,22.49668988,206.82,206.75,22.49668988]
[1735839385016,22.49668988,206.83,206.76,22.49668988]
[1735839385514,22.62217988,206.82,206.75,22.49668988]
[1735839385705,0.12549,206.81,206.75,22.49668988]
[1735839386226,0.12549,206.81,206.76,22.49668988]
[1735839386833,0.12549,206.82,206.76,22.49668988]
[1735839386992,28.90398988,206.85,206.78,22.49668988]
[1735839388142,22.49668988,206.86,206.79,22.49668988]
[1735839388303,0.25098,206.85,206.79,22.49668988]
[1735839388815,0.25098,206.85,206.75,12.0914]
[1735839388816,0.12549,206.84,206.78,22.49668988]
[1735839390333,0.12549,206.85,206.78,14.0468524]
[1735839390502,15.5494524,206.87,206.8,14.0468524]
[1735839390809,6.49,206.9,206.83,14.0468524]
[1735839391006,14.0468524,206.89,206.81,30.0]
[1735839391210,14.0468524,206.89,206.82,14.0468524]
[1735839391606,0.12549,206.89,206.82,14.0468524]
[1735839392308,0.25098,206.86,206.79,14.0468524]
[1735839392508,14.2978324,206.86,206.78,26.1369524]
[1735839392734,14.0468524,206.85,206.78,26.1369524]
[1735839392937,0.37647,206.84,206.78,14.0468524]
[1735839393238,14.4233224,206.84,206.77,14.0468524]
[1735839393540,14.0468524,206.87,206.79,14.0468524]
[1735839393712,14.0468524,206.85,206.78,14.0468524]
[1735839395141,0.25098,206.86,206.78,14.0468524]
[1735839396558,0.25098,206.82,206.76,14.0468524]
[1735839396727,14.0468524,206.81,206.74,14.0468524]
[1735839398336,0.12549,206.8,206.74,14.0468524]
[1735839398847,0.25098,206.8,206.74,14.0468524]
[1735839399535,0.25098,206.8,206.72,14.0468524]
[1735839400252,14.0468524,206.81,206.73,14.0468524]
[1735839400646,14.0468524,206.8,206.73,14.0468524]
[1735839401161,14.2978324,206.79,206.71,14.0468524]
[1735839401542,14.2978324,206.79,206.72,14.0468524]
[1735839401870,14.2978324,206.79,206.71,14.0468524]
[1735839402245,0.12549,206.77,206.71,14.0468524]
[1735839402664,14.1723424,206.77,206.69,14.0468524]
[1735839403168,0.12549,206.75,206.69,14.0468524]
[1735839403539,0.12549,206.75,206.63,0.72556895]
[1735839403540,14.1723424,206.73,206.64,12.0982]
[1735839403738,14.1723424,206.73,206.66,14.0468524]
[1735839403940,0.12549,206.73,206.67,14.0468524]
[1735839404348,34.0468524,206.76,206.69,14.0468524]
[1735839404547,14.1723424,206.78,206.71,14.0468524]
[1735839405762,0.25098,206.77,206.71,14.0468524]
[1735839406069,0.25098,206.75,206.69,14.0468524]
[1735839406257,0.25098,206.77,206.68,14.0468524]
[1735839406258,14.1723424,206.74,206.68,14.0468524]
[1735839406463,14.0468524,206.73,206.67,14.0468524]
[1735839406758,14.1723424,206.73,206.67,14.0468524]
[1735839406952,14.0468524,206.7,206.64,14.0468524]
[1735839407346,14.1723424,206.69,206.63,14.0468524]
[1735839407547,14.0468524,206.67,206.61,21.62189265]
[1735839407742,0.12549,206.69,206.63,14.0468524]
[1735839408242,0.12549,206.69,206.64,14.0468524]
[1735839408572,14.1723424,206.69,206.62,14.0468524]
[1735839408754,14.1723424,206.69,206.63,14.0468524]
[1735839409066,14.1723424,206.69,206.62,14.0468524]
[1735839409245,14.1723424,206.69,206.64,14.0468524]
[1735839409246,0.12549,206.69,206.64,14.0468524]
[1735839409441,20.4718524,206.71,206.66,14.0468524]
[1735839409442,6.425,206.71,206.66,14.0468524]
[1735839409644,1.5066,206.73,206.68,14.0468524]
[1735839410041,15.5534524,206.73,206.67,14.0468524]
[1735839410263,1.5066,206.73,206.67,14.0468524]
[1735839410464,14.0468524,206.72,206.66,14.0468524]
[1735839410645,14.2978324,206.71,206.64,26.1451524]
[1735839410842,14.2978324,206.71,206.64,14.0468524]
[1735839411373,14.0468524,206.7,206.63,14.0468524]
[1735839412049,14.2978324,206.71,206.64,14.0468524]
[1735839412252,14.0468524,206.7,206.63,14.0468524]
[1735839412563,14.2978324,206.71,206.64,34.0468524]
[1735839412765,0.25098,206.71,206.65,14.0468524]
[1735839413582,14.2978324,206.71,206.64,34.0468524]
[1735839414260,0.25098,206.71,206.65,14.0468524]
[1735839414465,0.12549,206.71,206.65,14.0468524]
[1735839415762,14.0468524,206.7,206.64,20.0]
[1735839415975,14.0468524,206.7,206.63,14.0468524]
[1735839415976,14.4233224,206.69,206.62,14.0468524]
[1735839416277,14.2978324,206.67,206.6,44.0468524]
[1735839416481,0.25098,206.67,206.61,14.0468524]
[1735839417374,14.0468524,206.66,206.59,26.1480524]
[1735839417555,14.0468524,206.67,206.6,14.0468524]
[1735839417757,0.37647,206.66,206.6,14.0468524]
[1735839417977,14.4233224,206.66,206.59,34.0468524]
[1735839418187,14.4233224,206.66,206.59,20.0]
[1735839418552,0.25098,206.64,206.59,20.0]
[1735839419052,14.0468524,206.66,206.59,34.0468524]
[1735839419384,0.25098,206.66,206.59,20.0]
[1735839419580,14.0468524,206.69,206.62,14.0468524]
[1735839420348,14.0468524,206.72,206.65,14.0468524]
[1735839421656,15.5534524,206.73,206.66,14.0468524]
[1735839422075,15.5534524,206.73,206.65,14.0468524]
[1735839422387,14.0468524,206.72,206.65,14.0468524]
[1735839422566,14.0468524,206.7,206.63,14.0468524]
[1735839422887,14.0468524,206.69,206.61,14.0468524]
[1735839423681,14.0468524,206.67,206.6,14.0468524]
[1735839423982,14.0468524,206.68,206.61,14.0468524]
[1735839424875,14.0468524,206.68,206.6,14.0468524]
[1735839425056,14.0468524,206.68,206.61,14.0468524]
[1735839425686,0.12549,206.68,206.62,14.0468524]
[1735839426188,14.0468524,206.7,206.63,14.0468524]
[1735839426760,1.5066,206.73,206.62,20.0]
[1735839426761,14.0468524,206.69,206.62,20.0]
[1735839427085,14.0468524,206.69,206.62,14.0468524]
[1735839427384,14.0468524,206.7,206.63,14.0468524]
[1735839427687,1.5066,206.73,206.66,14.0468524]
[1735839428457,15.5534524,206.73,206.65,14.0468524]
[1735839428785,1.5066,206.73,206.67,14.0468524]
[1735839428967,1.5066,206.73,206.66,14.0468524]
[1735839429166,14.0468524,206.71,206.63,14.0468524]
[1735839429366,14.0468524,206.7,206.63,14.0468524]
[1735839429574,14.0468524,206.69,206.62,44.0468524]
[1735839430255,14.0468524,206.68,206.62,30.0]
[1735839430457,14.0468524,206.67,206.6,14.0468524]
[1735839430657,14.0468524,206.65,206.58,14.0468524]
[1735839431272,14.0468524,206.65,206.57,14.0468524]
[1735839431474,14.0468524,206.65,206.58,14.0468524]
[1735839431979,14.0468524,206.65,206.58,5.5618524]
[1735839432753,14.0468524,206.67,206.6,14.0468524]
[1735839433271,14.0468524,206.62,206.55,14.0468524]
[1735839433880,1.6568,206.64,206.54,14.0468524]
[1735839433881,14.2978324,206.61,206.54,14.0468524]
[1735839434084,24.153354,206.63,206.49,30.72609961]
[1735839434270,14.0468524,206.59,206.52,14.0468524]
[1735839434892,14.0468524,206.61,206.5,12.83267431]
[1735839435086,14.0468524,206.62,206.55,14.0468524]
[1735839435465,1.6568,206.64,206.55,14.0468524]
[1735839435466,14.0468524,206.63,206.55,14.0468524]
[1735839435670,14.0468524,206.63,206.56,14.0468524]
[1735839435892,14.0468524,206.63,206.55,14.0468524]
[1735839436075,14.0468524,206.62,206.55,14.0468524]
[1735839436283,14.0468524,206.63,206.56,14.0468524]
[1735839436676,14.0468524,206.62,206.55,14.0468524]
[1735839437175,15.7036524,206.64,206.57,14.0468524]
[1735839437583,1.6568,206.64,206.58,14.0468524]
[1735839437790,1.6568,206.64,206.59,14.0468524]
[1735839438008,1.6568,206.64,206.58,14.0468524]
[1735839438692,6.1024,206.66,206.6,14.0468524]
[1735839439071,15.5956524,206.69,206.62,14.0468524]
[1735839439431,0.12549,206.69,206.62,14.0468524]
[1735839439575,14.0468524,206.7,206.62,14.0468524]
[1735839439974,6.1495,206.71,206.65,14.0468524]
[1735839440289,14.1723424,206.7,206.63,14.0468524]
[1735839440474,14.1723424,206.7,206.62,26.1459524]
[1735839440680,14.1723424,206.7,206.63,14.0468524]
[1735839440884,0.12549,206.7,206.64,14.0468524]
[1735839441097,0.12549,206.7,206.63,14.0468524]
[1735839441297,0.12549,206.67,206.61,14.0468524]
[1735839441610,14.0468524,206.63,206.56,14.0468524]
[1735839442114,14.0468524,206.63,206.55,14.0468524]
[1735839442415,14.0468524,206.61,206.54,14.0468524]
[1735839442591,14.0468524,206.62,206.55,14.0468524]
[1735839443406,14.0468524,206.61,206.54,14.0468524]
[1735839444212,14.0468524,206.61,206.53,26.1515524]
[1735839445013,14.0468524,206.61,206.54,14.0468524]
[1735839445209,1.6094,206.64,206.57,14.0468524]
[1735839445408,15.6562524,206.64,206.57,14.0468524]
[1735839445818,1.6094,206.64,206.57,14.0468524]
[1735839446499,14.0468524,206.63,206.56,14.0468524]
[1735839446813,14.2978324,206.57,206.47,12.1082]
[1735839447015,14.0468524,206.55,206.47,14.0468524]
[1735839447189,14.0468524,206.54,206.47,14.0468524]
[1735839447521,14.0468524,206.55,206.47,14.0468524]
[1735839447814,14.0468524,206.54,206.47,14.0468524]
[1735839448810,14.0468524,206.55,206.47,14.0468524]
[1735839448992,14.0468524,206.56,206.49,14.0468524]
[1735839449182,20.5281524,206.62,206.55,14.0468524]
[1735839449622,14.1723424,206.61,206.53,14.0468524]
[1735839450103,14.0468524,206.6,206.53,14.0468524]
[1735839450310,14.1723424,206.61,206.53,14.0468524]
[1735839450612,14.0468524,206.6,206.52,14.0468524]
[1735839450809,0.25098,206.61,206.52,14.0468524]
[1735839450810,14.0468524,206.59,206.52,14.0468524]
[1735839451021,14.0468524,206.6,206.52,14.0468524]
[1735839452014,14.0468524,206.58,206.51,14.0468524]
[1735839453096,0.25098,206.57,206.51,14.0468524]
[1735839453291,14.0468524,206.55,206.48,30.0]
[1735839453519,14.0468524,206.54,206.47,14.0468524]
[1735839453824,0.25098,206.53,206.47,14.0468524]
[1735839454012,0.25098,206.53,206.46,14.0468524]
[1735839454789,14.0468524,206.54,206.47,14.0468524]
[1735839456115,14.0468524,206.57,206.5,14.0468524]
[1735839456325,14.0468524,206.56,206.49,14.0468524]
[1735839456613,6.4813,206.62,206.5,14.0468524]
[1735839456614,14.0468524,206.57,206.5,14.0468524]
[1735839456816,6.4813,206.62,206.5,44.0468524]
[1735839457121,14.0468524,206.57,206.5,44.0468524]
[1735839457330,14.0468524,206.56,206.48,14.0468524]
[1735839458518,14.0468524,206.54,206.47,44.0468524]
[1735839458723,14.0468524,206.55,206.48,14.0468524]
[1735839459829,14.0468524,206.56,206.49,14.0468524]
[1735839460408,14.0468524,206.59,206.52,14.0468524]
[1735839460723,14.0468524,206.53,206.45,14.0468524]
[1735839460925,14.0468524,206.6,206.45,14.0468524]
[1735839460926,14.0468524,206.52,206.45,14.0468524]
[1735839461130,14.0468524,206.53,206.46,14.0468524]
[1735839461497,14.2978324,206.54,206.47,14.0468524]
[1735839462228,14.2978324,206.54,206.42,14.0468524]
[1735839462229,14.2978324,206.5,206.42,14.0468524]
[1735839462601,14.2978324,206.5,206.43,14.0468524]
[1735839462912,0.25098,206.5,206.44,14.0468524]
[1735839463302,14.2978324,206.5,206.43,14.0468524]
[1735839463634,14.0468524,206.51,206.44,14.0468524]
[1735839463804,14.0468524,206.52,206.44,14.0468524]
[1735839464447,14.0468524,206.53,206.45,14.0468524]
[1735839464908,14.0468524,206.54,206.47,14.0468524]
[1735839465307,14.0468524,206.53,206.45,44.0468524]
[1735839465517,14.0468524,206.53,206.46,14.0468524]
[1735839466210,15.6394524,206.55,206.47,14.0468524]
[1735839466639,14.0468524,206.51,206.44,14.0468524]
[1735839467009,14.0468524,206.51,206.43,26.1570524]
[1735839467441,14.0468524,206.51,206.44,14.0468524]
[1735839467645,14.0468524,206.52,206.45,14.0468524]
[1735839467939,14.0468524,206.52,206.44,14.0468524]
[1735839468321,14.0468524,206.51,206.44,14.0468524]
[1735839468533,14.0468524,206.5,206.43,14.0468524]
[1735839469044,14.0468524,206.51,206.44,14.0468524]
[1735839469541,15.6394524,206.55,206.47,14.0468524]
[1735839469839,14.0468524,206.53,206.46,14.0468524]
[1735839470038,14.2978324,206.52,206.45,14.0468524]
[1735839470340,14.0468524,206.52,206.45,14.0468524]
[1735839470750,14.0468524,206.54,206.47,14.0468524]
[1735839470920,1.5926,206.55,206.48,14.0468524]
[1735839471124,14.0468524,206.56,206.48,14.0468524]
[1735839471324,6.2729,206.58,206.47,14.0468524]
[1735839471325,14.0468524,206.55,206.47,14.0468524]
[1735839471724,14.0468524,206.56,206.48,14.0468524]
[1735839472733,14.0468524,206.55,206.48,14.0468524]
[1735839474354,14.0468524,206.57,206.5,14.0468524]
[1735839474652,14.0468524,206.57,206.48,56.1544524]
[1735839475148,14.0468524,206.55,206.48,14.0468524]
[1735839475336,14.0468524,206.54,206.47,14.0468524]
[1735839476055,14.0468524,206.49,206.42,14.0468524]
[1735839476255,14.0468524,206.5,206.42,14.0468524]
[1735839476558,14.0468524,206.51,206.43,14.0468524]
[1735839477057,14.0468524,206.52,206.45,14.0468524]
[1735839477227,14.0468524,206.55,206.48,14.0468524]
[1735839477545,6.2729,206.58,206.46,14.0468524]
[1735839477546,14.0468524,206.53,206.46,14.0468524]
[1735839477742,14.0468524,206.54,206.47,14.0468524]
[1735839477939,14.0468524,206.55,206.47,14.0468524]
[1735839478534,14.0468524,206.55,206.48,14.0468524]
[1735839479252,14.0468524,206.57,206.5,14.0468524]
[1735839479470,14.0468524,206.59,206.51,14.0468524]
[1735839480749,15.7065524,206.6,206.53,14.0468524]
[1735839481065,1.6597,206.6,206.53,14.0468524]
[1735839481756,1.6597,206.6,206.54,14.0468524]
[1735839481987,1.6597,206.6,206.53,14.0468524]
[1735839482128,1.6597,206.6,206.54,14.0468524]
[1735839482529,1.6597,206.6,206.53,14.0468524]
[1735839482945,1.6597,206.6,206.54,14.0468524]
[1735839483860,1.6597,206.6,206.51,20.40688542]
[1735839483861,14.0468524,206.59,206.52,14.0468524]
[1735839484066,14.0468524,206.58,206.51,21.62189265]
[1735839484361,1.6597,206.6,206.53,14.0468524]
[1735839484763,1.6597,206.6,206.52,14.0468524]
[1735839484947,14.0468524,206.59,206.52,14.0468524]
[1735839486189,14.0468524,206.62,206.54,44.0468524]
[1735839486360,14.0468524,206.6,206.53,14.0468524]
[1735839486550,14.0468524,206.59,206.51,33.72769265]
[1735839486887,14.0468524,206.61,206.54,14.0468524]
[1735839487169,14.0468524,206.6,206.53,14.0468524]
[1735839487371,14.0468524,206.59,206.52,7.57504025]
[1735839487574,14.0468524,206.58,206.52,7.57504025]
[1735839488072,14.0468524,206.59,206.52,7.57504025]
[1735839488447,14.0468524,206.59,206.51,14.0468524]
[1735839488649,14.0468524,206.6,206.52,14.0468524]
[1735839489247,14.0468524,206.59,206.51,14.0468524]
[1735839490148,14.0468524,206.6,206.52,14.0468524]
[1735839490348,14.0468524,206.6,206.53,14.0468524]
[1735839490548,14.0468524,206.6,206.52,14.0468524]
[1735839490748,14.0468524,206.62,206.54,14.0468524]
[1735839490965,14.0468524,206.63,206.56,14.0468524]
[1735839491894,14.0468524,206.62,206.55,14.0468524]
[1735839492870,14.0468524,206.64,206.56,44.0468524]
[1735839493173,14.0468524,206.63,206.56,14.0468524]
[1735839493367,1.587,206.65,206.55,7.57504025]
[1735839493368,14.0468524,206.62,206.55,7.57504025]
[1735839493547,14.0468524,206.62,206.56,7.57504025]
[1735839493941,14.0468524,206.63,206.56,51.62189265]
[1735839494165,14.0468524,206.63,206.56,14.0468524]
[1735839494360,14.0468524,206.62,206.55,21.62189265]
[1735839494566,14.0468524,206.61,206.55,7.57504025]
[1735839494947,14.0468524,206.6,206.55,7.57504025]
[1735839495849,14.0468524,206.61,206.55,7.57504025]
[1735839496371,15.57546339,206.73,206.56,56.1498524]
[1735839496671,14.0468524,206.66,206.59,14.0468524]
[1735839496996,14.0468524,206.67,206.6,14.0468524]
[1735839497280,14.0468524,206.67,206.58,21.62189265]
[1735839497574,14.0468524,206.67,206.6,14.0468524]
[1735839497747,14.0468524,206.68,206.6,14.0468524]
[1735839497948,13.6156,206.73,206.59,42.82702319]
[1735839497949,14.0468524,206.65,206.59,42.82702319]
[1735839498162,14.0468524,206.64,206.59,7.57504025]
[1735839498461,14.0468524,206.65,206.59,7.57504025]
[1735839498765,14.0468524,206.62,206.59,7.57504025]
[1735839498979,14.0468524,206.61,206.59,7.57504025]
[1735839499149,14.0468524,206.6,206.56,7.57504025]
[1735839499877,14.0468524,206.57,206.53,7.57504025]
[1735839500070,14.0468524,206.56,206.53,7.57504025]
[1735839500269,24.153354,206.63,206.51,7.57504025]
[1735839500270,14.0468524,206.54,206.51,7.57504025]
[1735839500479,14.0468524,206.52,206.51,7.57504025]
[1735839501066,14.0468524,206.52,206.45,7.57504025]
[1735839501267,14.0468524,206.5,206.45,7.57504025]
[1735839501591,14.0468524,206.5,206.44,9.09214025]
[1735839501880,14.0468524,206.51,206.44,23.13899265]
[1735839502095,36.255054,206.59,206.46,14.0468524]
[1735839502259,14.0468524,206.52,206.45,14.0468524]
[1735839502874,14.0468524,206.51,206.45,7.57504025]
[1735839503086,14.0468524,206.52,206.45,21.62189265]
[1735839503399,14.0468524,206.51,206.45,7.57504025]
[1735839504065,14.0468524,206.52,206.45,14.0468524]
[1735839504267,14.0468524,206.51,206.44,1.5171]
[1735839504471,14.0468524,206.49,206.43,7.57504025]
[1735839504876,14.0468524,206.48,206.43,7.57504025]
[1735839505071,14.0468524,206.45,206.43,7.57504025]
[1735839505260,14.0468524,206.45,206.4,30.13162652]
[1735839505261,14.0468524,206.45,206.41,7.57504025]
[1735839505460,14.0468524,206.44,206.41,7.57504025]
[1735839505974,14.0468524,206.45,206.38,14.0468524]
[1735839507285,14.0468524,206.46,206.39,14.0468524]
[1735839507760,14.0468524,206.5,206.42,30.0]
[1735839507966,14.0468524,206.52,206.45,14.0468524]
[1735839508569,14.0468524,206.51,206.44,14.0468524]
[1735839508982,14.0468524,206.52,206.45,14.0468524]
[1735839512009,1.506,206.54,206.46,14.0468524]
[1735839512177,14.0468524,206.56,206.49,14.0468524]
[1735839512589,1.5583,206.59,206.52,14.0468524]
[1735839512889,14.0468524,206.62,206.55,14.0468524]
[1735839513400,15.6051524,206.64,206.57,14.0468524]
[1735839513573,14.0468524,206.62,206.55,14.0468524]
[1735839513780,14.0468524,206.63,206.56,14.0468524]
[1735839514524,14.0468524,206.65,206.57,30.0]
[1735839514795,14.0468524,206.67,206.61,14.0468524]
[1735839514997,14.0468524,206.67,206.6,44.0468524]
[1735839515801,14.0468524,206.66,206.6,30.0]
[1735839516098,14.0468524,206.62,206.56,7.57504025]
[1735839516302,14.0468524,206.61,206.56,7.57504025]
[1735839516499,14.0468524,206.61,206.54,21.62189265]
[1735839517303,14.0468524,206.61,206.54,14.0468524]
[1735839517503,14.0468524,206.6,206.53,14.0468524]
[1735839518398,14.0468524,206.6,206.53,22.53013346]
[1735839518399,22.53013346,206.6,206.53,22.53013346]
[1735839519199,22.53013346,206.6,206.52,24.18383346]
[1735839519403,22.53013346,206.59,206.52,24.18383346]
[1735839519904,22.53013346,206.6,206.52,24.18383346]
[1735839520097,22.53013346,206.6,206.53,22.53013346]
[1735839520401,22.53013346,206.56,206.5,38.30108024]
[1735839520596,22.53013346,206.56,206.5,7.57504025]
[1735839520971,22.53013346,206.57,206.5,30.10517371]
[1735839521180,22.53013346,206.54,206.47,24.05923346]
[1735839521785,22.53013346,206.55,206.47,24.05923346]
[1735839522401,22.53013346,206.52,206.45,22.53013346]
[1735839522574,22.53013346,206.52,206.44,53.25639599]
[1735839522783,22.53013346,206.51,206.44,52.53013346]
[1735839522999,22.53013346,206.51,206.44,22.53013346]
[1735839523505,22.53013346,206.51,206.44,52.53013346]
[1735839523701,22.53013346,206.56,206.49,22.53013346]
[1735839524308,22.53013346,206.52,206.45,22.53013346]
[1735839524499,22.53013346,206.53,206.45,22.53013346]
[1735839524683,22.53013346,206.53,206.46,22.53013346]
[1735839524884,22.53013346,206.54,206.46,22.53013346]
[1735839525313,22.53013346,206.53,206.46,22.53013346]
[1735839526418,0.25098,206.54,206.48,22.53013346]
[1735839526710,22.53013346,206.55,206.48,22.53013346]
[1735839527085,22.53013346,206.56,206.48,22.53013346]
[1735839527285,22.53013346,206.55,206.48,22.53013346]
[1735839527714,22.53013346,206.56,206.49,22.53013346]
[1735839527891,22.53013346,206.57,206.5,52.53013346]
[1735839528090,7.609,206.64,206.54,22.53013346]
[1735839528292,22.53013346,206.61,206.54,22.53013346]
[1735839528494,22.53013346,206.62,206.54,22.53013346]
[1735839529013,22.53013346,206.61,206.54,22.53013346]
[1735839529386,22.53013346,206.6,206.53,53.25611696]
[1735839529996,22.53013346,206.61,206.54,22.53013346]
[1735839530203,22.53013346,206.6,206.53,53.25611696]
[1735839530685,22.53013346,206.61,206.54,22.53013346]
[1735839530882,22.53013346,206.6,206.53,53.25611696]
[1735839531087,22.53013346,206.6,206.53,30.7259835]
[1735839531816,22.53013346,206.6,206.53,53.25611696]
[1735839532108,22.53013346,206.61,206.54,22.53013346]
[1735839532315,22.53013346,206.6,206.53,53.25611696]
[1735839532814,22.53013346,206.6,206.53,52.53013346]
[1735839533018,22.53013346,206.55,206.49,37.57504025]
[1735839533312,22.53013346,206.55,206.49,7.57504025]
[1735839533814,22.53013346,206.55,206.48,22.53013346]
[1735839534220,22.53013346,206.57,206.49,22.53013346]
[1735839534553,50.06026692,206.5,206.43,15.06581326]
[1735839534818,0.83545146,206.49,206.44,15.06581326]
[1735839534985,24.153354,206.48,206.44,15.06581326]
[1735839535186,22.53013346,206.45,206.44,15.06581326]
[1735839535415,0.25098,206.44,206.32,30.0]
[1735839535586,22.53013346,206.38,206.32,30.0]
[1735839536015,22.53013346,206.4,206.35,30.0]
[1735839536195,22.53013346,206.42,206.38,30.0]
[1735839536401,0.83545146,206.49,206.38,30.0]
[1735839536402,22.53013346,206.44,206.38,30.0]
[1735839537212,22.53013346,206.42,206.37,0.72650786]
[1735839537512,22.53013346,206.4,206.35,31.6207]
[1735839538218,22.53013346,206.43,206.38,30.0]
[1735839538816,22.53013346,206.45,206.38,30.0]
[1735839539016,22.53013346,206.45,206.39,0.72648535]
[1735839539907,0.83545146,206.54,206.43,30.0]
[1735839539908,22.53013346,206.49,206.43,30.0]
[1735839540120,22.53013346,206.53,206.45,52.53013346]
[1735839540324,22.53013346,206.53,206.48,30.0]
[1735839540914,22.53013346,206.53,206.48,30.7262376]
[1735839541111,22.53013346,206.56,206.52,30.0]
[1735839541318,22.53013346,206.58,206.52,30.7260681]
[1735839543222,22.53013346,206.57,206.52,30.7260681]
[1735839543728,22.53013346,206.53,206.52,20.0]
[1735839543925,22.53013346,206.55,206.52,50.0]
[1735839544134,22.53013346,206.56,206.52,50.0]
[1735839544331,22.53013346,206.54,206.52,20.0]
[1735839544713,0.83545146,206.66,206.52,50.0]
[1735839544910,22.53013346,206.56,206.52,50.0]
[1735839545107,22.53013346,206.55,206.52,50.0]
[1735839545342,22.53013346,206.56,206.52,50.0]
[1735839545533,22.53013346,206.55,206.52,50.0]
[1735839546631,22.53013346,206.55,206.52,20.0]
[1735839547443,22.53013346,206.53,206.49,30.0]
[1735839547749,22.53013346,206.5,206.49,30.0]
[1735839547943,22.53013346,206.5,206.47,7.7039]
[1735839548247,0.83545146,206.59,206.44,30.72625819]
[1735839548248,22.53013346,206.48,206.44,30.0]
[1735839548420,22.53013346,206.45,206.42,7.6997]
[1735839548625,22.53013346,206.43,206.41,30.0]
[1735839548824,22.53013346,206.42,206.41,30.0]
[1735839550738,22.53013346,206.42,206.38,30.72648022]
[1735839551644,22.53013346,206.41,206.38,30.72648022]
[1735839552154,22.53013346,206.41,206.38,30.0]
[1735839552320,22.53013346,206.4,206.38,30.0]
[1735839552518,22.53013346,206.39,206.36,1.552]
[1735839552924,22.53013346,206.39,206.35,30.0]
[1735839553124,22.53013346,206.38,206.32,37.2555852]
[1735839553343,22.53013346,206.36,206.32,37.2555852]
[1735839553627,22.53013346,206.36,206.32,30.0]
[1735839555122,22.53013346,206.39,206.33,0.72680726]
[1735839556253,22.53013346,206.38,206.32,30.0]
[1735839556431,22.53013346,206.39,206.32,52.53013346]
[1735839557454,22.53013346,206.39,206.32,53.25684383]
[1735839558660,5.0,206.3,206.24,15.06581326]
[1735839558960,22.53013346,206.25,206.24,15.06581326]
[1735839559161,22.65562346,206.25,206.24,15.06581326]
[1735839559335,22.90660346,206.25,206.24,15.06581326]
[1735839560039,22.90660346,206.25,206.12,30.0]
[1735839560040,0.12549,206.24,206.12,30.0]
[1735839560238,22.53013346,206.17,206.12,30.0]
[1735839562359,22.53013346,206.17,206.09,58.92063346]
[1735839562730,12.95715146,206.24,206.09,36.3905]
[1735839562731,22.53013346,206.15,206.09,36.3905]
[1735839563048,22.53013346,206.14,206.09,30.0]
[1735839563229,22.53013346,206.13,206.09,30.0]
[1735839563645,22.53013346,206.14,206.09,30.0]
[1735839563843,22.53013346,206.1,206.04,7.26049963]
[1735839564053,22.53013346,206.07,206.02,31.5764]
[1735839564257,0.83545146,206.19,206.02,30.0]
[1735839564258,22.53013346,206.04,206.02,30.0]
[1735839565651,22.53013346,206.04,205.99,30.0]
[1735839566057,22.53013346,206.03,205.99,30.0]
[1735839566964,22.53013346,206.05,205.99,30.0]
[1735839567166,22.53013346,206.04,206.0,0.72786855]
[1735839568262,22.53013346,206.03,206.0,0.72786855]
[1735839568574,22.53013346,206.05,206.03,30.0]
[1735839568855,22.53013346,206.07,206.03,30.0]
[1735839569448,22.53013346,206.12,206.06,30.0]
[1735839569665,22.53013346,206.08,206.02,30.0]
[1735839569842,22.53013346,206.09,206.05,30.0]
[1735839570555,22.53013346,206.1,206.05,30.0]
[1735839570760,22.53013346,206.11,206.08,30.0]
[1735839570963,22.53013346,206.13,206.08,30.0]
[1735839571571,22.53013346,206.11,206.05,30.0]
[1735839571770,22.53013346,206.11,206.08,30.0]
[1735839572772,22.53013346,206.12,206.08,30.0]
[1735839572973,22.53013346,206.13,206.08,30.0]
[1735839573157,22.53013346,206.1,206.08,30.0]
[1735839573470,22.53013346,206.11,206.08,30.0]
[1735839573770,22.53013346,206.11,206.06,0.25588053]
[1735839574073,22.53013346,206.11,206.08,30.0]
[1735839574271,22.53013346,206.12,206.08,30.0]
[1735839574472,22.53013346,206.1,206.05,30.0]
[1735839574677,22.53013346,206.08,206.02,30.25583042]
[1735839574877,22.53013346,206.07,206.02,30.25583042]
[1735839575088,22.53013346,206.08,206.05,30.0]
[1735839575656,22.53013346,206.06,206.02,30.0]